Workbook

Sheet Предложение за 4.1 Физ.н.
A1: 4.1 Физични науки
A2: разширени курсове | F2: =SUM(B3,B11,B18,B25,B35,B51) -> 2145 | G2: Стандартни курсове | K2: =SUM(H3,H11,H18,H25,H35,H43,H51) -> 1920 | M2: Кратки курсове | Q2: =SUM(N3,N11,N18,N25,N35,N43) -> 1200
A3: 1 семестър | B3: =SUM(B4:D9) -> 435 | H3: =SUM(H4:J8) -> 330 | N3: =SUM(N4:P8) -> 285
A4: Начални комп. Знания 1 | B4: 0 | C4: 0 | D4: 45 | G4: Начални комп. Знания 2 | H4: 0 | I4: 0 | J4: 30 | M4: Начални комп. Знания 2 | N4: 0 | O4: 0 | P4: 30
A5: Механика 1 | B5: 60 | C5: 45 | D5: 0 | G5: Механика 2 | H5: 45 | I5: 30 | J5: 0 | M5: Осн. Физ. 1 | N5: 30 | O5: 30 | P5: 30
A6: Практикум механика | B6: 0 | C6: 0 | D6: 45 | G6: Практикум механика | H6: 0 | I6: 0 | J6: 45 | M6: МА1 3 | N6: 45 | O6: 45 | P6: 0
A7: ЛААГ 1 | B7: 60 | C7: 60 | D7: 0 | G7: ЛААГ 2 | H7: 45 | I7: 45 | J7: 0 | M7: ЛААГ 3 | N7: 30 | O7: 45 | P7: 0
A8: МА1 1 | B8: 60 | C8: 60 | D8: 0 | G8: МА1 2 | H8: 45 | I8: 45 | J8: 0
A11: 2 семестър | B11: =SUM(B12:D16) -> 390 | H11: =SUM(H12:J16) -> 285 | N11: 210
A12: ВФС 1 | B12: 30 | C12: 15 | D12: 30 | G12: ВФС 2 | H12: 30 | I12: 15 | J12: 0 | M12: ВФС 2 | N12: 30 | O12: 15 | P12: 0
A13: МА 2 1 | B13: 60 | C13: 60 | D13: 0 | G13: МА 2 2 | H13: 45 | I13: 30 | J13: 0 | M13: МА2 3 | N13: 30 | O13: 45
A14: Мол. Физ 1 | B14: 30 | C14: 45 | D14: 0 | G14: Мол. Физ 2 | H14: 30 | I14: 30 | J14: 0 | M14: Осн. Физ 2 | N14: 30 | O14: 30 | P14: 30
A15: Практ. Мол. Физ. | B15: 0 | C15: 0 | D15: 45 | G15: Практ. Мол. Физ. | H15: 0 | I15: 0 | J15: 45
A16: Компл. Анализ 1 | B16: 45 | C16: 30 | D16: 0 | G16: Компл. Анализ 2 | H16: 30 | I16: 30 | J16: 0
A18: 3 семестър | B18: =SUM(B19:D23) -> 390 | H18: =SUM(H19:J23) -> 300 | N18: 150
A19: ПИФ 1 | B19: 30 | C19: 15 | D19: 45 | G19: ПИФ 2 | H19: 30 | I19: 0 | J19: 30 | M19: ПИФ 2 | N19: 30 | O19: 0 | P19: 30
A20: Електр. И Маг. 1 | B20: 60 | C20: 30 | D20: 0 | G20: Електр. И Маг. 2 | H20: 45 | I20: 30 | J20: 0 | M20: ММ1 | N20: 45 | O20: 45 | P20: 0
A21: Практ. ЕМ | B21: 0 | C21: 0 | D21: 45 | G21: Практ. ЕМ | H21: 0 | I21: 0 | J21: 45
A22: ВТС 1 | B22: 45 | C22: 30 | D22: 0 | G22: ВТС 2 | H22: 30 | I22: 30 | J22: 0
A23: ОДУ 1 | B23: 60 | C23: 30 | D23: 0 | G23: ОДУ 2 | H23: 30 | I23: 30 | J23: 0
A25: 4 семестър | B25: =SUM(B26:D30) -> 345 | H25: =SUM(H26:J30) -> 345 | N25: 300
A26: Оптика 1 | B26: 60 | C26: 45 | D26: 0 | G26: Оптика 2 | H26: 45 | I26: 30 | J26: 0 | M26: ММ2 | N26: 45 | O26: 45 | P26: 0
A27: Практ. Оптика | B27: 0 | C27: 0 | D27: 45 | G27: Практ. Оптика | H27: 0 | I27: 0 | J27: 45 | M27: ТФ 1 | N27: 60 | O27: 30 | P27: 0
A28: ЧДУ 1 | B28: 60 | C28: 30 | D28: 0 | G28: ЧДУ 2 | H28: 30 | I28: 30 | J28: 0 | M28: ОРЕ | N28: 30 | O28: 0 | P28: 45
A29: Теор. МЕх ККТФ | B29: 60 | C29: 45 | D29: 0 | G29: Теор. МЕх | H29: 60 | I29: 30 | J29: 0 | M29: Английски начинаещи | N29: 0 | O29: 45 | P29: 0
G30: ОРЕ 1 | H30: 30 | I30: 0 | J30: 45
A31: Английски начинаещи | B31: 0 | C31: 45 | D31: 0 | G31: Английски начинаещи | H31: 0 | I31: 45 | J31: 0
A35: 5 семестър | B35: =SUM(B36:D40) -> 315 | H35: =SUM(H36:J40) -> 315 | N35: 135
A36: ЕД КТТФ | B36: 60 | C36: 30 | D36: 0 | G36: ЕД | H36: 60 | I36: 30 | J36: 0 | M36: ТФ 2 | N36: 60 | O36: 30 | P36: 0
A37: КМ КТТФ | B37: 60 | C37: 45 | D37: 0 | G37: КМ | H37: 60 | I37: 30 | J37: 0 | M37: Английски напреднали | N37: 0 | O37: 45 | P37: 0
A38: ОРЕ | B38: 30 | C38: 0 | D38: 45 | G38: ОРЕ 2 | H38: 45 | I38: 0 | J38: 45
A39: Английски напреднали | B39: 0 | C39: 45 | D39: 0 | G39: Английски напреднали | H39: 0 | I39: 45 | J39: 0
A43: 6 семестър | B43: =SUM(B44:D46) -> 240 | H43: =SUM(H44:J48) -> 180 | N43: 120
A44: ТД КТТФ | B44: 45 | C44: 30 | D44: 0 | G44: ТСФ | H44: 60 | I44: 30 | J44: 0 | M44: АФ | N44: 45 | O44: 30 | P44: 45
A45: ФАМЙЛ 1 | B45: 30 | C45: 30 | D45: 45 | G45: ФАМЙЛ 2 | H45: 30 | I45: 15 | J45: 45
A46: Астрофизика | B46: 45 | C46: 15 | D46: 0
A51: 7 семестър | B51: =SUM(B53:D55) -> 270 | H51: =SUM(H53:J55) -> 165
A53: ЯФ 1 | B53: 30 | C53: 15 | D53: 45 | G53: ЯФ 2 | H53: 15 | I53: 15 | J53: 45
A54: ФЕЧ 1 | B54: 30 | C54: 30 | D54: 30 | G54: ФЕЧ 2 | H54: 15 | I54: 15 | J54: 15
A55: ФКМ | B55: 60 | C55: 30 | D55: 0 | G55: ФКМ | H55: 30 | I55: 15 | J55: 0
A60: 8 семестър

Sheet Предложение за 5.3 ККТ
A1: 5.3 Ком и Ком Техн
F2: =SUM(B3,B11,B18,B25,B32,B48) -> 885
A3: 1 семестър | B3: =SUM(B4:D9) -> 210
A4: Пр. Мат 1 | B4: 45 | C4: 45 | D4: 0
A5: Ком. Пр 1 | B5: 0 | C5: 0 | D5: 30
A6: Физика 1 | B6: 30 | C6: 30 | D6: 30
A11: 2 семестър | B11: =SUM(B12:D16) -> 210
A12: Пр. Мат. 2 | B12: 45 | C12: 45 | D12: 0
A13: Комп. Пр 2 | B13: 0 | C13: 0 | D13: 30
A14: Физика 2 | B14: 30 | C14: 30 | D14: 30
A18: 3 семестър | B18: =SUM(B19:D23) -> 225
A19: ЕМ | B19: 30 | C19: 15 | D19: 45
A20: Пр. Мат. 3 | B20: 30 | C20: 45 | D20: 0
A21: Теорет. Електр. | B21: 30 | C21: 30 | D21: 0
A25: 4 семестър | B25: =SUM(B26:D30) -> 150
A26: ВФС | B26: 30 | C26: 15 | D26: 0
A27: Ел. Сх. У - Аналог. Техн. | B27: 45 | C27: 15 | D27: 45
A32: 5 семестър | B32: =SUM(B33:D37) -> 90
A33: Ел. Сх. У - Ц. Техн. | B33: 45 | C33: 0 | D33: 45
A34: Курсов проект | B34: 0 | C34: 0 | D34: 0
A40: 6 семестър | B40: =SUM(B41:D45) -> 0
A48: 7 семестър
A57: 8 семестър
